fUSD/lending_fUSD_20250115
["ID","MTS","AMOUNT","RATE_DAILY","PERIOD"]
[349065314,1736956310731,-500.0,0.00053972,120]
[349065315,1736956310741,-1023.29,0.00053972,120]
[349065316,1736956310754,-767.75,0.00053972,120]
[349065317,1736956310765,-1008.37,0.00053972,120]
[349065318,1736956310776,-500.0,0.00053972,120]
[349065319,1736956310785,-500.0,0.00053972,120]
[349065320,1736956310798,-500.0,0.00053972,120]
[349065321,1736956310807,-500.0,0.00053972,120]
[349065322,1736956310818,-500.0,0.00053972,120]
[349065323,1736956310829,-685.34,0.00053972,120]
[349065324,1736956310840,-500.0,0.00053972,120]
[349065325,1736956310850,-500.0,0.00053972,120]
[349065326,1736956310860,-669.64,0.00053972,120]
[349065327,1736956310870,-500.0,0.00053972,120]
[349065328,1736956310881,-956.49,0.00053972,120]
[349065329,1736956310891,-500.0,0.00053972,120]
[349065330,1736956310902,-500.0,0.00053972,120]
[349065331,1736956310913,-583.79035573,0.00053972,120]
[349065332,1736956310923,-178.28280811,0.00053972,120]
[349065333,1736956310933,-500.0,0.00053972,120]
[349065334,1736956310944,-500.0,0.00053972,120]
[349065335,1736956310954,-500.0,0.00053972,120]
[349065336,1736956310964,-500.0,0.00053972,120]
[349065337,1736956310976,-500.0,0.00053972,120]
[349065338,1736956310986,-157.99,0.00053972,120]
[349065339,1736956310995,-500.0,0.00053972,120]
[349065340,1736956311005,-1034.79,0.00053972,120]
[349065341,1736956311015,-569.66,0.00053972,120]
[349065342,1736956311024,-564.09081062,0.00053972,120]
[349065343,1736956311034,-500.0,0.00053972,120]
[349065344,1736956311045,-578.02,0.00053972,120]
[349065345,1736956311054,-1272.04,0.00053972,120]
[349065346,1736956311064,-500.0,0.00053972,120]
[349065347,1736956311074,-500.0,0.00053972,120]
[349065348,1736956311084,-500.0,0.00053972,120]
[349065349,1736956311094,-500.0,0.00053972,120]
[349065350,1736956311104,-741.05,0.00053972,120]
[349065351,1736956311113,-666.66,0.00053972,120]
[349065352,1736956311123,-500.0,0.00053972,120]
[349065353,1736956311134,-579.96,0.00053972,120]
[349065354,1736956311144,-500.0,0.00053972,120]
[349065355,1736956311154,-1069.07,0.00053972,120]
[349065356,1736956311163,-592.75826759,0.00053972,120]
[349065357,1736956311174,-500.0,0.00053972,120]
[349065358,1736956311184,-500.0,0.00053972,120]
[349065359,1736956311194,-500.0,0.00053972,120]
[349065360,1736956311204,-560.95695915,0.00053972,120]
[349065361,1736956311214,-500.0,0.00053972,120]
[349065362,1736956311226,-500.0,0.00053972,120]
[349065363,1736956311236,-500.0,0.00053972,120]
[349065364,1736956311246,-500.0,0.00053972,120]
[349065365,1736956311256,-500.0,0.00053972,120]
[349065366,1736956311266,-500.0,0.00053972,120]
[349065367,1736956311275,-500.0,0.00053972,120]
[349065368,1736956311285,-261.75099942,0.00053972,120]
[349065369,1736956311296,-500.0,0.00053972,120]
[349065370,1736956311306,-500.0,0.00053972,120]
[349065371,1736956311316,-500.0,0.00053972,120]
[349065372,1736956311326,-500.0,0.00053972,120]
[349065373,1736956311335,-863.42,0.00053972,120]
[349065374,1736956311346,-500.0,0.00053972,120]
[349065375,1736956311356,-639.13976933,0.00053972,120]
[349065376,1736956311365,-500.0,0.00053972,120]
[349065377,1736956311375,-500.0,0.00053972,120]
[349065378,1736956311385,-500.0,0.00053972,120]
[349065379,1736956311394,-567.46,0.00053972,120]
[349065380,1736956311404,-500.0,0.00053972,120]
[349065381,1736956311414,-500.0,0.00053972,120]
[349065382,1736956311424,-1088.39,0.00053972,120]
[349065383,1736956311434,-500.0,0.00053972,120]
[349065384,1736956311444,-500.0,0.00053972,120]
[349065385,1736956311453,-504.15130988,0.00053972,120]
[349065386,1736956311462,-500.0,0.00053972,120]
[349065387,1736956311472,-500.0,0.00053972,120]
[349065388,1736956311481,-500.0,0.00053972,120]
[349065389,1736956311491,-545.48,0.00053972,120]
[349065390,1736956311501,-830.22,0.00053972,120]
[349065391,1736956311511,-516.47,0.00053972,120]
[349065392,1736956311521,-275.94,0.00053972,120]
[349065393,1736956311530,-1750.92,0.00053972,120]
[349065394,1736956311540,-500.0,0.00053972,120]
[349065395,1736956311550,-500.0,0.00053972,120]
[349065396,1736956311560,-516.77387237,0.00053972,120]
[349065397,1736956311571,-500.0,0.00053972,120]
[349065398,1736956311581,-1151.99,0.00053972,120]
[349065399,1736956311591,-808.52,0.00053972,120]
[349065400,1736956311601,-833.16,0.00053972,120]
[349065401,1736956311610,-655.47,0.00053972,120]
[349065402,1736956311619,-500.0,0.00053972,120]
[349065403,1736956311629,-1411.41,0.00053972,120]
[349065404,1736956311639,-500.0,0.00053972,120]
[349065405,1736956311649,-500.0,0.00053972,120]
[349065406,1736956311659,-2335.74,0.00053972,120]
[349065407,1736956311669,-500.0,0.00053972,120]
[349065408,1736956311679,-845.91,0.00053972,120]
[349065409,1736956311689,-643.15,0.00053972,120]
[349065410,1736956311698,-1811.92,0.00053972,120]
[349065411,1736956311708,-1514.03,0.00053972,120]
[349065412,1736956311718,-875.7,0.00053972,120]
[349065413,1736956311728,-500.0,0.00053972,120]
[349065414,1736956311738,-500.0,0.00053972,120]
[349065415,1736956311749,-500.0,0.00053972,120]
[349065416,1736956311761,-439.98703768,0.00053972,120]
[349065417,1736956311771,-500.0,0.00053972,120]
[349065418,1736956311782,-500.0,0.00053972,120]
[349065419,1736956311791,-1833.32,0.00053972,120]
[349065420,1736956311802,-818.95,0.00053972,120]
[349065421,1736956311811,-500.0,0.00053972,120]
[349065422,1736956311822,-870.98,0.00053972,120]
[349065423,1736956311834,-282.11918033,0.00053972,120]
[349065424,1736956311845,-1571.26,0.00053972,120]
[349065425,1736956311854,-729.88,0.00053972,120]
[349065426,1736956311864,-500.0,0.00053972,120]
[349065427,1736956311874,-576.45,0.00053972,120]
[349065428,1736956311884,-1295.82,0.00053972,120]
[349065429,1736956311894,-189.1292053,0.00053972,120]
[349065430,1736956311904,-500.0,0.00053972,120]
[349065431,1736956311913,-500.0,0.00053972,120]
[349065432,1736956311924,-1631.23,0.00053972,120]
[349065433,1736956311934,-501.73607162,0.00053972,120]
[349065434,1736956311944,-500.0,0.00053972,120]
[349065435,1736956311954,-391.69307273,0.00053972,120]
[349065436,1736956311963,-605.55,0.00053972,120]
[349065437,1736956311974,-949.32,0.00053972,120]
[349065438,1736956311984,-500.0,0.00053972,120]
[349065439,1736956311994,-581.98,0.00053972,120]
[349065440,1736956312004,-1230.43,0.00053972,120]
[349065441,1736956312014,-500.0,0.00053972,120]
[349065442,1736956312025,-2929.59,0.00053972,120]
[349065443,1736956312034,-1262.49,0.00053972,120]
[349065444,1736956312045,-820.14,0.00053972,120]
[349065445,1736956312055,-604.89,0.00053972,120]
[349065446,1736956312065,-500.0,0.00053972,120]
[349065447,1736956312074,-500.0,0.00053972,120]
[349065448,1736956312085,-1949.77,0.00053972,120]
[349065449,1736956312095,-500.0,0.00053972,7]
[349065450,1736956312105,-500.0,0.00053972,120]
[349065451,1736956312116,-598.53,0.00053972,120]
[349065452,1736956312126,-500.0,0.00053972,120]
[349065453,1736956312137,-520.20076101,0.00053972,120]
[349065454,1736956312148,-566.05,0.00053972,120]
[349065455,1736956312158,-573.40263042,0.00053972,120]
[349065456,1736956312168,-635.19,0.00053972,120]
[349065457,1736956312178,-500.0,0.00053972,120]
[349065458,1736956312189,-2191.36,0.00053972,120]
[349065459,1736956312199,-507.12431399,0.00053972,120]
[349065460,1736956312208,-500.0,0.00053972,120]
[349065461,1736956312218,-744.0,0.00053972,120]
[349065462,1736956312229,-500.0,0.00053972,120]
[349065463,1736956312239,-500.0,0.00053972,120]
[349065464,1736956312248,-906.29,0.00053972,120]
[349065465,1736956312258,-4237.77,0.00053972,120]
[349065466,1736956312268,-500.0,0.00053972,120]
[349065467,1736956312278,-500.0,0.00053972,120]
[349065468,1736956312287,-500.0,0.00053972,120]
[349065469,1736956312296,-912.14,0.00053972,120]
[349065470,1736956312307,-500.0,0.00053972,120]
[349065471,1736956312316,-1368.88,0.00053972,120]
[349065472,1736956312326,-1706.89,0.00053972,120]
[349065473,1736956312336,-1000.0,0.00053972,120]
[349065474,1736956312346,-918.62,0.00053972,120]
[349065475,1736956312356,-1734.94,0.00053972,120]
[349065476,1736956312367,-457.11467276,0.00053972,120]
[349065477,1736956312378,-500.0,0.00053972,120]
[349065478,1736956312388,-2711.34,0.00053972,120]
[349065479,1736956312398,-1192.56,0.00053972,120]
[349065480,1736956312408,-500.0,0.00053972,120]
[349065481,1736956312419,-823.64,0.00053972,120]
[349065482,1736956312429,-945.57,0.00053972,120]
[349065483,1736956312438,-686.03,0.00053972,120]
[349065484,1736956312448,-1841.61,0.00053972,120]
[349065485,1736956312458,-500.0,0.00053972,120]
[349065486,1736956312468,-500.0,0.00053972,120]
[349065487,1736956312480,-751.34,0.00053972,120]
[349065488,1736956312491,-500.0,0.00053972,120]
[349065489,1736956312501,-702.95,0.00053972,120]
[349065490,1736956312511,-931.44,0.00053972,120]
[349065491,1736956312521,-1001.04,0.00053972,120]
[349065492,1736956312531,-3022.65,0.00053972,2]
[349065493,1736956312541,-500.0,0.00053972,120]
[349065494,1736956312551,-1356.86,0.00053972,120]
[349065495,1736956312561,-1183.26,0.00053972,120]
[349065496,1736956312571,-1246.12,0.00053972,120]
[349065497,1736956312581,-755.66,0.00053972,120]
[349065498,1736956312591,-1984.29,0.00053972,120]
[349065499,1736956312601,-820.04,0.00053972,120]
[349065500,1736956312611,-894.5,0.00053972,120]
[349065501,1736956312621,-1558.7,0.00053972,120]
[349065502,1736956312631,-1821.33,0.00053972,120]
[349065503,1736956312641,-2247.77,0.00053972,120]
[349065504,1736956312651,-500.0,0.00053972,120]
[349065505,1736956312660,-1132.68,0.00053972,120]
[349065506,1736956312669,-779.1,0.00053972,120]
[349065507,1736956312679,-500.0,0.00053972,120]
[349065508,1736956312689,-500.0,0.00053972,120]
[349065509,1736956312699,-500.0,0.00053972,120]
[349065510,1736956312709,-740.68,0.00053972,120]
[349065511,1736956312718,-500.0,0.00053972,120]
[349065512,1736956312729,-1291.55,0.00053972,120]
[349065513,1736956312739,-197.49126868,0.00053972,120]
[349065514,1736956312750,-500.0,0.00053972,120]
[349065515,1736956312831,-500.0,0.00053972,120]
[349065516,1736956312843,-500.0,0.00053972,120]
[349065517,1736956312852,-1339.34,0.00053972,120]
[349065518,1736956312861,-153.36239561,0.00053972,120]
[349065519,1736956313662,-6077.84228632,0.00030971,30]
[349065520,1736956313674,-2498.12389,0.00030971,30]
[349065521,1736956313684,-153.0,0.00048107,31]
[349065522,1736956313694,-500.0,0.00052054,120]
[349065523,1736956313704,-500.0,0.00052054,120]
[349065524,1736956313715,-570.82,0.00052328,120]
[349065525,1736956313725,-737.86829062,0.00052328,120]
[349065526,1736956313737,-589.57170938,0.00052328,120]
[349065527,1736956313748,-191.70294062,0.00052602,120]
[349065528,1736956313811,-153.0,0.00048107,31]
[349065529,1736956313819,-500.0,0.00052054,120]
[349065530,1736956313830,-697.60705938,0.00052602,120]
[349065531,1736956313840,-570.82,0.00052602,120]
[349065532,1736956313849,-909.3163807,0.00052602,120]
[349065533,1736956313860,-418.1236193,0.00052602,120]
[349065534,1736956313869,-501.84938069,0.00052876,120]
[349065535,1736956313879,-387.46061931,0.00052876,120]
[349065536,1736956313889,-570.82,0.00052876,120]
[349065537,1736956313898,-1327.44,0.00052876,120]
[349065538,1736956313907,-889.31,0.0005315,120]
[349065539,1736956313916,-570.82,0.0005315,120]
[349065540,1736956313926,-1327.44,0.0005315,120]
[349065541,1736956313935,-500.0,0.00053424,120]
[349065542,1736956313944,-889.31,0.00053424,120]
[349065543,1736956313953,-570.82,0.00053424,120]
[349065544,1736956313960,-1327.44,0.00053424,120]
[349065545,1736956313968,-522.37,0.00053698,120]
[349065546,1736956313978,-743.6,0.00053698,120]
[349065547,1736956313986,-500.0,0.00053698,120]
[349065548,1736956313995,-889.31,0.00053698,120]
[349065549,1736956314005,-570.82,0.00053698,120]
[349065550,1736956314015,-1327.44,0.00053698,120]
[349065551,1736956314025,-346.63760439,0.00053972,120]
[349065552,1736956314035,-798.98,0.00053972,120]
[349065553,1736956314045,-1557.71,0.00053972,120]
[349065554,1736956314055,-1817.75,0.00053972,120]
[349065555,1736956314066,-500.0,0.00053972,120]
[349065556,1736956314077,-500.0,0.00053972,120]
[349065557,1736956314087,-3637.12,0.00053972,30]
[349065558,1736956314097,-500.0,0.00053972,120]
[349065559,1736956314107,-2872.55,0.00053972,120]
[349065560,1736956314117,-502.21749652,0.00053972,120]
[349065561,1736956314146,-150.0,0.0004288,2]
[349065562,1736956314156,-327.05250348,0.00053972,120]
[349065563,1736956314167,-964.96350413,0.00053972,120]
[349065564,1736956314542,-153.0,0.00048107,31]
[349065565,1736956314552,-153.0,0.00048107,31]
[349065566,1736956314562,-153.0,0.00048107,31]
[349065567,1736956314572,-500.0,0.00052054,120]
[349065568,1736956314582,-500.0,0.00052054,120]
[349065569,1736956314592,-500.0,0.00052328,120]
[349065570,1736956314602,-500.0,0.00052328,120]
[349065571,1736956314612,-500.0,0.00052602,120]
[349065572,1736956314622,-500.0,0.00052602,120]
[349065573,1736956314632,-500.0,0.00052876,120]
[349065574,1736956314642,-500.0,0.00052876,120]
[349065575,1736956314652,-500.0,0.0005315,120]
[349065576,1736956314663,-500.0,0.0005315,120]
[349065577,1736956314673,-500.0,0.00053424,120]
[349065578,1736956314683,-500.0,0.00053424,120]
[349065579,1736956314694,-500.0,0.00053698,120]
[349065580,1736956314705,-301.78862807,0.00053698,120]
[349065581,1736956314716,-35.03649587,0.00053972,120]
[349065582,1736956314728,-2750.24,0.00053972,90]
[349065583,1736956314738,-1310.61,0.00053972,120]
[349065584,1736956314749,-43.32487606,0.00053972,120]
[349065585,1736956314778,-500.0,0.00052054,120]
[349065586,1736956314788,-456.67512394,0.00053972,120]
[349065587,1736956314799,-247.29126679,0.00053972,120]
[349065588,1736956314823,-150.0,0.000437,2]
[349065589,1736956314835,-395.28873321,0.00053972,120]
[349065590,1736956314846,-1484.9352409,0.00053972,120]
[349065591,1736956314858,-856.2747591,0.00053972,120]
[349065592,1736956314869,-500.0,0.00053972,120]
[349065593,1736956314879,-706.15,0.00053972,120]
[349065594,1736956314889,-500.0,0.00053972,120]
[349065595,1736956314900,-1041.56,0.00053972,120]
[349065596,1736956314911,-500.0,0.00053972,120]
[349065597,1736956314921,-500.0,0.00053972,120]
[349065598,1736956314932,-500.0,0.00053972,120]
[349065599,1736956314942,-3227.41,0.00053972,120]
[349065600,1736956314952,-497.74743645,0.00053972,120]
[349065601,1736956314961,-500.0,0.00053972,120]
[349065602,1736956314971,-1148.7,0.00053972,120]
[349065603,1736956314983,-1179.9,0.00053972,120]
[349065604,1736956314993,-500.0,0.00053972,120]
[349065605,1736956315003,-500.0,0.00053972,120]
[349065606,1736956315014,-504.55102955,0.00053972,120]
[349065607,1736956315025,-500.0,0.00053972,120]
[349065608,1736956315035,-534.35,0.00053972,120]
[349065609,1736956315045,-501.74826303,0.00053972,120]
[349065610,1736956315055,-335.40566435,0.00053972,120]
[349065611,1736956315065,-778.85,0.00053972,120]
[349065612,1736956315076,-806.4,0.00053972,120]
[349065613,1736956315086,-1518.02,0.00053972,120]
[349065614,1736956315096,-509.62,0.00053972,120]
[349065615,1736956315106,-500.0,0.00053972,120]
[349065616,1736956315115,-500.0,0.00053972,120]
[349065617,1736956315125,-500.0,0.00053972,120]
[349065618,1736956315135,-500.0,0.00053972,120]
[349065619,1736956315146,-644.08,0.00053972,120]
[349065620,1736956315156,-1713.52,0.00053972,120]
[349065621,1736956315166,-500.0,0.00053972,2]
[349065622,1736956315176,-521.75,0.00053972,120]
[349065623,1736956315186,-500.0,0.00053972,120]
[349065624,1736956315195,-1191.65,0.00053972,120]
[349065625,1736956315205,-500.0,0.00053972,120]
[349065626,1736956315216,-3167.13,0.00053972,120]
[349065627,1736956315227,-500.0,0.00053972,120]
[349065628,1736956315237,-1915.01,0.00053972,120]
[349065629,1736956315247,-570.35905983,0.00053972,120]
[349065630,1736956315257,-2872.11,0.00053972,120]
[349065631,1736956315267,-814.94,0.00053972,120]
[349065632,1736956315278,-1905.0,0.00053972,120]
[349065633,1736956315288,-625.0,0.00053972,120]
[349065634,1736956315299,-510.06,0.00053972,120]
[349065635,1736956315309,-1608.41,0.00053972,120]
[349065636,1736956315319,-500.0,0.00053972,120]
[349065637,1736956315330,-849.44,0.00053972,120]
[349065638,1736956315341,-500.0,0.00053972,120]
[349065639,1736956315351,-268.66363971,0.00053972,120]
[349065640,1736956315362,-769.37,0.00053972,120]
[349065641,1736956315372,-500.0,0.00053972,120]
[349065642,1736956315382,-500.0,0.00053972,120]
[349065643,1736956315392,-645.83,0.00053972,120]
[349065644,1736956315403,-500.0,0.00053972,120]
[349065645,1736956315414,-500.0,0.00053972,120]
[349065646,1736956315425,-2038.04,0.00053972,120]
[349065647,1736956315435,-611.36,0.00053972,120]
[349065648,1736956315446,-500.0,0.00053972,120]
[349065649,1736956315456,-169.42972097,0.00053972,120]
[349065650,1736956315466,-606.95,0.00053972,120]
[349065651,1736956315477,-743.6,0.00053972,120]
[349065652,1736956315487,-221.86075312,0.00053972,120]
[349065653,1736956315497,-889.31,0.00053972,120]
[349065654,1736956315507,-570.82,0.00053972,120]
[349065655,1736956315519,-1327.44,0.00053972,120]
[349065656,1736956315529,-500.0,0.00053972,120]
[349065657,1736956315539,-7943.77624296,0.0005399,30]
[349065658,1736956315550,-3228.96,0.00053995,120]
[349065659,1736956315561,-17887.91608937,0.00054,120]
[349065660,1736956315572,-200.0,0.00054,120]
[349065661,1736956315583,-5000.0,0.00054,120]
[349065662,1736956315593,-110542.99271724,0.00054,31]
[349065663,1736956315648,-94190.25215858,0.00054,31]
[349065664,1736956315666,-1490.74919,0.00054,31]
[349065665,1736956315679,-3099.76011504,0.00054,31]
[349065666,1736956315691,-17776.90861783,0.00054,31]
[349065685,1736957403171,9685.22414316,8.529e-05,2]
[349065686,1736957403196,10000.0,8.529e-05,2]
[349065687,1736957403218,314.77585684,8.529e-05,2]
[349065698,1736957431952,-241.21,0.00010137,2]
[349065699,1736957431962,-75.18846166,0.00011,2]
[349065700,1736957432222,-474.81153834,0.00011,2]
[349065701,1736957432232,-500.0,0.00011,2]
[349065702,1736957432241,-500.0,0.00011,2]
[349065703,1736957432250,-144.89056047,0.00011,2]
[349065704,1736957432334,-294.19462682,0.00011,2]
[349065705,1736957432345,-60.91481271,0.00011,2]
[349065706,1736957432355,-500.0,0.00011,2]
[349065707,1736957432364,-1598.54784942,0.00011,2]
[349065708,1736957432373,-600.0,0.00013,2]
[349065709,1736957432383,-500.0,0.00013394,2]
[349065710,1736957432392,-241.21,0.00016813,2]
[349065711,1736957432401,-524.769339,0.00020539,2]
[349065712,1736957432411,-1972.68894021,0.00020642,120]
[349065713,1736957432420,-883.80876184,0.00020642,120]
[349065714,1736957432430,-1284.80975192,0.00020642,120]
[349065715,1736957432439,-5935.84206448,0.00021552,14]
[349065716,1736957432448,-184.29,0.00021552,14]
[349065717,1736957432458,-241.21,0.0002349,2]
[349065718,1736957432467,-307.53,0.000253,2]
[349065719,1736957432476,-280.0,0.000253,10]
[349065721,1736957432486,-198.70845755,0.000272,44]
[349065723,1736957432495,-391.0,0.0002783,15]
[349065725,1736957432504,-150.0,0.00029,120]
[349065726,1736957432513,-151.0,0.0003,120]
[349065728,1736957432522,-241.21,0.00030166,2]
[349065730,1736957432531,-634.290489,0.00030613,30]
[349065732,1736957432543,-151.0,0.00031041,120]
[349065733,1736957432553,-151.0,0.00032082,120]
[349065735,1736957432562,-151.0,0.00033123,120]
[349065736,1736957432572,-190.0,0.00034,120]
[349065739,1736957432582,-151.0,0.00034164,120]
[349065740,1736957432591,-1419.607,0.00034617,2]
[349065742,1736957432601,-1104.0,0.00034617,2]
[349065744,1736957432610,-150.0,0.00034685,7]
[349065746,1736957432619,-151.0,0.00035205,120]
[349065748,1736957432629,-744.03823346,0.00035854,2]
[349065750,1736957432637,-180.0,0.00036,120]
[349065752,1736957432646,-151.0,0.00036247,120]
[349065754,1736957432656,-241.21,0.00036842,2]
[349065756,1736957432665,-151.0,0.00037288,120]
[349065758,1736957432674,-243.045,0.00037617,2]
[349065760,1736957432683,-1972.68894021,0.00038,120]
[349065762,1736957432692,-883.80876184,0.00038,120]
[349065764,1736957432701,-180.0,0.00038,120]
[349065766,1736957432711,-151.0,0.00038329,120]
[349065768,1736957432719,-170.0,0.00038329,4]
[349065770,1736957432728,-344.19,0.00039079,120]
[349065772,1736957432737,-250.0,0.00039084,120]
[349065774,1736957432747,-312.36,0.00039169,2]
[349065775,1736957432756,-1000.0,0.00039169,120]
[349065777,1736957432765,-1763.02,0.00039189,120]
[349065779,1736957432774,-896.19,0.00039235,2]
[349065781,1736957432783,-4000.0,0.00039298,2]
[349065783,1736957432794,-151.0,0.0003937,120]
[349065785,1736957432803,-1972.68894021,0.0004,120]
[349065787,1736957432813,-883.80876184,0.0004,120]
[349065789,1736957432821,-200.0,0.0004,120]
[349065791,1736957432831,-170.47,0.00040361,2]
[349065793,1736957432839,-151.0,0.00040411,120]
[349065795,1736957432849,-8292.83276968,0.000408,30]
[349065797,1736957432861,-262.76248,0.000408,30]
[349065799,1736957432872,-312.69458048,0.000408,30]
[349066282,1736957437866,-514.09640394,0.00039188,2]
[349066285,1736957437878,-55.96359606,0.00039188,2]
[349066287,1736957437888,-506.07558082,0.000408,30]
[349066296,1736957437973,-409.25956129,0.000408,30]
[349066299,1736957437985,-352.1706674,0.000408,30]
[349066301,1736957437997,-540.65357155,0.000408,30]
[349066305,1736957438029,-9462.27213778,0.000408,30]
[349066307,1736957438039,-603.81214274,0.000409,2]
[349066309,1736957438049,-151.0,0.00041452,120]
[349066311,1736957438059,-603.81214256,0.00041797,2]
[349066313,1736957438068,-200.0,0.00042,120]
[349066315,1736957438079,-151.0,0.00042493,120]
[349066317,1736957438088,-500.0,0.0004269,2]
[349066319,1736957438097,-603.81214256,0.00042693,2]
[349066321,1736957438107,-3091.2094947,0.00043,120]
[349066323,1736957438118,-854.16838573,0.00043,120]
[349066325,1736957438127,-1767.61752368,0.00043,120]
[349066328,1736957438137,-2657.67882333,0.00043,120]
[349066330,1736957438151,-241.21,0.00043518,2]
[349066332,1736957438160,-151.0,0.00043534,120]
[349066333,1736957438170,-603.81214256,0.0004359,2]
[349066335,1736957438179,-1359.09240661,0.0004385,2]
[349066338,1736957438192,-174.57,0.00043882,2]
[349066339,1736957438201,-344.19,0.00043963,120]
[349066342,1736957438211,-150.0,0.00044,57]
[349066343,1736957438221,-200.0,0.00044,120]
[349066345,1736957438231,-458.0,0.00044,5]
[349066347,1736957438242,-603.81214256,0.00044486,3]
[349066349,1736957438252,-151.0,0.00044575,120]
[349066351,1736957438262,-603.81214256,0.00045383,3]
[349066353,1736957438272,-151.0,0.00045616,120]
[349066355,1736957438282,-500.0,0.00045756,2]
[349066358,1736957438294,-23900.0,0.00045866,2]
[349066359,1736957438304,-1041.43,0.00045866,2]
[349066360,1736957438313,-794.79,0.0004598,2]
[349066361,1736957438323,-4931.72235053,0.00046,120]
[349066362,1736957438332,-2209.5219046,0.00046,120]
[349066363,1736957438341,-200.0,0.00046,120]
[349066364,1736957438350,-3000.0,0.00046,120]
[349066365,1736957438359,-250.0,0.00046097,2]
[349066366,1736957438368,-174.57,0.00046146,2]
[349066368,1736957438378,-603.81214256,0.00046279,3]
[349066370,1736957438387,-4974.0,0.00046287,117]
[349066372,1736957438396,-151.0,0.00046658,120]
[349066374,1736957438406,-970.157,0.000469,78]
[349066376,1736957438417,-175.099,0.000469,78]
[349066378,1736957438426,-570.0053329,0.000469,15]
[349066380,1736957438435,-1359.09240661,0.000469,2]
[349066382,1736957438445,-158.44251436,0.000469,2]
[349066385,1736957438454,-2829.0,0.00046966,30]
[349066388,1736957438463,-57362.56736916,0.00047,47]
[349066391,1736957438480,-567.82012182,0.00047,47]
[349066396,1736957438513,-461.70180778,0.00047,47]
[349066399,1736957438525,-2115.47849276,0.00047,47]
[349066401,1736957438535,-13580.98115534,0.00047,47]
[349066404,1736957438561,-484.25820093,0.00047,47]
[349066537,1736957439901,-901.74694655,0.00047,47]
[349066543,1736957439955,-258.8554515,0.00047,47]
[349066546,1736957439967,-669.89808001,0.00047,47]
[349066556,1736957440061,-304.92225924,0.00047,47]
[349066563,1736957440115,-150.0,0.00041797,2]
[349066565,1736957440124,-217.66501,0.00047,47]
[349066575,1736957440225,-296.9,0.00047,47]
[349066582,1736957440278,-2243.20373796,0.00047,47]
[349066584,1736957440290,-500.0,0.00047,47]
[349066589,1736957440333,-4244.18315355,0.00047,47]
[349066884,1736957443063,-150.0,0.00043,120]
[349066886,1736957443073,-573.59999995,0.00047,47]
[349066891,1736957443118,-15216.21821345,0.00047,47]
[349066893,1736957443128,-3000.0,0.00047,120]
[349066895,1736957443140,-250.0,0.00047073,120]
[349066897,1736957443151,-603.81214256,0.00047176,3]
[349066899,1736957443161,-5000.0,0.0004723,120]
[349066901,1736957443170,-269.3915,0.0004724,15]
[349066903,1736957443180,-2751.0,0.00047321,120]
[349066905,1736957443191,-3317.40346689,0.0004733,2]
[349066907,1736957443203,-17666.0,0.0004733,2]
[349066910,1736957443218,-653.550005,0.0004733,2]
[349066912,1736957443230,-11253.53962211,0.0004733,2]
[349066914,1736957443239,-544.61206939,0.0004733,2]